fUST/lending_fUST_20251231
["ID","MTS","AMOUNT","RATE_DAILY","PERIOD"]
[400143389,1767150643644,-636.51090941,0.00014795,2]
[400143390,1767150643653,-1500.0,0.00014795,2]
[400143391,1767150643663,-1500.0,0.00014795,2]
[400143392,1767150643674,-501.61073472,0.00014795,2]
[400143393,1767150643684,-1500.0,0.00014795,2]
[400143394,1767150643693,-1516.82099752,0.00014795,2]
[400143395,1767150643704,-1500.0,0.00014795,2]
[400143396,1767150643714,-1500.0,0.00014795,2]
[400143397,1767150643723,-1500.0,0.00014795,2]
[400143398,1767150643733,-1500.0,0.00014795,2]
[400143399,1767150643742,-1500.0,0.00014795,2]
[400143400,1767150643752,-1500.0,0.00014795,2]
[400143401,1767150643762,-1500.0,0.00014795,2]
[400143402,1767150643771,-1104.02175741,0.00014795,2]
[400143403,1767150643780,-1818.87701711,0.00014916,2]
[400143404,1767150643790,-1951.0928214,0.00014916,2]
[400143405,1767150643799,-2000.0,0.00014916,2]
[400143406,1767150643808,-806.02349709,0.00014916,2]
[400143407,1767150643817,-2000.0,0.00014916,2]
[400143408,1767150643827,-2000.0,0.00014916,2]
[400143409,1767150643836,-2000.0,0.00014916,2]
[400143410,1767150643845,-2000.0,0.00014916,2]
[400143411,1767150643855,-2000.0,0.00014916,2]
[400143412,1767150643864,-2000.0,0.00014916,2]
[400143413,1767150643874,-1079.52271368,0.00014916,2]
[400143414,1767150643883,-2000.0,0.00014916,2]
[400143415,1767150643893,-2000.0,0.00014916,2]
[400143416,1767150643903,-2000.0,0.00014916,2]
[400143417,1767150643913,-2000.0,0.00014916,2]
[400143418,1767150643923,-1431.23584985,0.00014916,2]
[400143419,1767150643933,-2000.0,0.00014916,2]
[400143421,1767150643944,-2001.82211209,0.00014916,2]
[400143423,1767150643955,-2000.0,0.00014916,2]
[400143424,1767150643965,-424.40432946,0.00014916,2]
[400143425,1767150643985,-2017.15080689,0.00014916,2]
[400143426,1767150643996,-2000.0,0.00014916,2]
[400143427,1767150644006,-864.0,0.00014965,2]
[400143428,1767150644016,-100000.0,0.00015028,2]
[400143429,1767150644026,-181.299206,0.00015068,2]
[400143430,1767150644037,-803.5950816,0.00015068,2]
[400143431,1767150644047,-420.32073456,0.00015092,6]
[400143432,1767150644057,-3149.43,0.00015213,2]
[400143433,1767150644067,-1200.0,0.00015316,2]
[400143434,1767150644077,-175.548111,0.00015342,2]
[400143435,1767150644087,-175.548111,0.00015342,2]
[400143436,1767150644097,-175.548111,0.00015342,2]
[400143438,1767150644106,-175.548111,0.00015342,2]
[400143440,1767150644116,-507.91355612,0.00015342,2]
[400143441,1767150644125,-2000.0,0.00015342,2]
[400143442,1767150644135,-915.94669576,0.00015342,2]
[400143443,1767150644145,-1531.44929217,0.00015342,2]
[400143445,1767150644154,-1004.96402588,0.00015342,2]
[400143446,1767150644163,-1648.95093186,0.00015342,2]
[400143448,1767150644173,-653.38246347,0.00015342,2]
[400143449,1767150644183,-1165.86238698,0.00015342,2]
[400143450,1767150644192,-1005.23629678,0.00015342,2]
[400143451,1767150644201,-2000.0,0.00015342,2]
[400143452,1767150644210,-288.21762562,0.00015342,2]
[400143453,1767150644220,-1072.64960671,0.00015342,2]
[400143454,1767150644229,-2000.0,0.00015342,2]
[400143455,1767150644239,-503.07338889,0.00015342,2]
[400143456,1767150644248,-402.01463508,0.00015342,2]
[400143457,1767150644257,-516.87119182,0.00015342,2]
[400143459,1767150644267,-1502.28673473,0.00015342,2]
[400143460,1767150644277,-705.75062246,0.00015342,2]
[400143461,1767150644286,-1297.38655962,0.00015342,2]
[400143462,1767150644296,-502.02163491,0.00015342,2]
[400143463,1767150644306,-791.10184317,0.00015342,2]
[400143464,1767150644315,-2001.67734075,0.00015342,2]
[400143465,1767150644324,-502.54472719,0.00015342,2]
[400143466,1767150644334,-2000.0,0.00015342,2]
[400143467,1767150644343,-2129.31875673,0.00015342,2]
[400143468,1767150644352,-602.77058771,0.00015342,2]
[400143469,1767150644362,-1384.30858632,0.00015342,2]
[400143470,1767150644371,-1966.55656616,0.00015342,2]
[400143471,1767150644381,-2000.0,0.00015342,2]
[400143472,1767150644390,-2001.75988266,0.00015342,2]
[400143473,1767150644400,-2000.0,0.00015342,2]
[400143474,1767150644409,-501.68831439,0.00015342,2]
[400143475,1767150644418,-502.12822371,0.00015342,2]
[400143476,1767150644429,-1504.50560439,0.00015342,2]
[400143477,1767150644439,-2000.0,0.00015342,2]
[400143478,1767150644448,-322.73616062,0.00015427,2]
[400143479,1767150644457,-499.794244,0.00015464,2]
[400143480,1767150644467,-499.794244,0.00015464,2]
[400143481,1767150644475,-499.794244,0.00015464,2]
[400143482,1767150644485,-499.794244,0.00015464,2]
[400143483,1767150644494,-2500.0,0.00015464,2]
[400143484,1767150644503,-268.13998817,0.00015464,2]
[400143485,1767150644513,-2500.0,0.00015464,2]
[400143486,1767150644522,-2500.0,0.00015464,2]
[400143487,1767150644531,-2500.0,0.00015464,2]
[400143488,1767150644540,-2500.0,0.00015464,2]
[400143489,1767150644549,-2356.70683283,0.00015464,2]
[400143490,1767150644559,-2194.42033107,0.00015464,2]
[400143491,1767150644569,-2500.0,0.00015464,2]
[400143492,1767150644578,-2500.0,0.00015464,2]
[400143493,1767150644588,-2500.0,0.00015464,2]
[400143494,1767150644598,-2500.0,0.00015464,2]
[400143495,1767150644607,-2500.0,0.00015464,2]
[400143496,1767150644616,-2500.0,0.00015464,2]
[400143497,1767150644626,-624.37893491,0.00015522,6]
[400143498,1767150644638,-1262.39169597,0.00015699,2]
[400143499,1767150644648,-250.0,0.00015723,2]
[400143500,1767150644658,-151.0,0.000158,2]
[400143501,1767150644667,-3292.0,0.00015836,2]
[400143502,1767150644677,-902.05494296,0.00015864,2]
[400143503,1767150644687,-903.04207638,0.0001589,2]
[400143504,1767150644696,-418.31768676,0.0001589,2]
[400143505,1767150644708,-2607.58623966,0.0001589,2]
[400143506,1767150644717,-2500.0,0.0001589,2]
[400143507,1767150644727,-1519.2068046,0.0001589,2]
[400143508,1767150644736,-2500.0,0.0001589,2]
[400143509,1767150644746,-502.92641723,0.0001589,2]
[400143510,1767150644755,-823.0,0.00015899,2]
[400143511,1767150644764,-2008.62893178,0.00016012,2]
[400143512,1767150644774,-3000.0,0.00016012,2]
[400143513,1767150644783,-3076.89571839,0.00016012,2]
[400143514,1767150644795,-3000.0,0.00016012,2]
[400143515,1767150644804,-3000.0,0.00016012,2]
[400143516,1767150644813,-3000.0,0.00016012,2]
[400143517,1767150644823,-3000.0,0.00016012,2]
[400143518,1767150644832,-3000.0,0.00016012,2]
[400143519,1767150644842,-3000.0,0.00016012,2]
[400143520,1767150644851,-3000.0,0.00016012,2]
[400143521,1767150644860,-3000.0,0.00016012,2]
[400143522,1767150644870,-333.58412071,0.00016019,2]
[400143523,1767150644880,-4199.24,0.00016383,2]
[400143524,1767150644889,-500.0,0.00016438,2]
[400143525,1767150644899,-495.78642928,0.00016438,2]
[400143526,1767150644908,-3000.0,0.00016438,2]
[400143527,1767150644918,-3000.0,0.00016438,2]
[400143528,1767150644927,-1000.0,0.00016462,2]
[400143529,1767150644937,-200.0,0.00016473,2]
[400143530,1767150644946,-2581.75382253,0.0001656,2]
[400143531,1767150644956,-347.53001016,0.0001656,2]
[400143532,1767150644965,-3500.0,0.0001656,2]
[400143533,1767150644975,-955.99987486,0.0001656,2]
[400143534,1767150644985,-3500.0,0.0001656,2]
[400143535,1767150644994,-2300.51799825,0.0001656,2]
[400143536,1767150645004,-3022.87177869,0.0001656,2]
[400143537,1767150645014,-3500.0,0.0001656,2]
[400143538,1767150645023,-3500.0,0.0001656,2]
[400143539,1767150645033,-151.0,0.00016717,2]
[400143540,1767150645042,-162.62076672,0.00016717,2]
[400143541,1767150645052,-257.39953178,0.00016717,2]
[400143542,1767150645062,-151.0,0.00016717,2]
[400143543,1767150645071,-151.0,0.00016717,2]
[400143544,1767150645081,-500.0,0.00016717,2]
[400143545,1767150645091,-151.0,0.00016717,2]
[400143546,1767150645101,-500.0,0.00016717,2]
[400143547,1767150645111,-151.0,0.00016717,2]
[400143548,1767150645120,-500.0,0.00016717,2]
[400143549,1767150645130,-151.0,0.00016717,2]
[400143550,1767150645139,-500.0,0.00016717,2]
[400143551,1767150645149,-151.0,0.00016717,2]
[400143552,1767150645158,-500.0,0.00016717,2]
[400143553,1767150645168,-151.0,0.00016717,2]
[400143554,1767150645177,-500.0,0.00016717,2]
[400143555,1767150645187,-151.0,0.00016717,2]
[400143556,1767150645196,-500.0,0.00016717,2]
[400143557,1767150645206,-151.0,0.00016717,2]
[400143558,1767150645215,-500.0,0.00016717,2]
[400143559,1767150645226,-151.0,0.00016717,2]
[400143560,1767150645235,-250.0,0.00016717,2]
[400143561,1767150645245,-500.0,0.00016717,2]
[400143562,1767150645255,-151.0,0.00016717,2]
[400143563,1767150645264,-500.0,0.00016717,2]
[400143564,1767150645274,-250.0,0.00016717,2]
[400143565,1767150645284,-151.0,0.00016717,2]
[400143566,1767150645293,-500.0,0.00016717,2]
[400143567,1767150645303,-251.64926451,0.00016717,2]
[400143568,1767150645313,-153.1576525,0.00016717,2]
[400143569,1767150645323,-500.0,0.00016717,2]
[400143570,1767150645332,-500.0,0.00016717,2]
[400143571,1767150645342,-500.0,0.00016717,2]
[400143572,1767150645352,-2487.15318209,0.00016717,2]
[400143573,1767150645362,-151.0,0.00016717,2]
[400143574,1767150645373,-514.84070869,0.00016717,2]
[400143575,1767150645383,-151.0,0.00016717,2]
[400143576,1767150645393,-151.0,0.00016717,2]
[400143577,1767150645403,-151.0,0.00016717,2]
[400143578,1767150645413,-10000.0,0.00016886,2]
[400143579,1767150645423,-3500.0,0.00016986,2]
[400143580,1767150645433,-3500.0,0.00016986,2]
[400143581,1767150645443,-151.0,0.00017,2]
[400143582,1767150645453,-1182.62181526,0.00017037,2]
[400143583,1767150645463,-725.28703191,0.00017108,2]
[400143584,1767150645474,-4000.0,0.00017108,2]
[400143585,1767150645483,-1011.18997277,0.00017108,2]
[400143586,1767150645493,-4000.0,0.00017108,2]
[400143587,1767150645503,-1681.28293825,0.00017155,6]
[400143588,1767150645512,-2579.17784983,0.00017265,2]
[400143589,1767150645522,-151.68521952,0.00017265,2]
[400143590,1767150645532,-533.88981491,0.00017265,2]
[400143591,1767150645542,-4609.0,0.0001742,2]
[400143592,1767150645552,-1152.0,0.00017453,2]
[400143593,1767150645562,-4000.0,0.00017534,2]
[400143594,1767150645572,-4000.0,0.00017534,2]
[400143595,1767150645581,-5249.05,0.00017553,2]
[400143596,1767150645591,-2497.51573964,0.00017573,6]
[400143597,1767150645600,-3038.3121025,0.00017656,2]
[400143598,1767150645610,-1013.30440151,0.00017656,2]
[400143599,1767150645619,-332.0,0.00017684,2]
[400143600,1767150645629,-1262.39169597,0.00017799,2]
[400143601,1767150645643,-40523.52634166,0.000178,3]
[400143602,1767150645653,-2674.60743027,0.00017813,2]
[400143603,1767150645663,-553.64373807,0.00017813,2]
[400143604,1767150645673,-424.0,0.0001784,2]
[400143605,1767150645683,-278.6904084,0.00017842,2]
[400143606,1767150645693,-377.73496022,0.00018019,2]
[400143607,1767150645703,-4500.0,0.00018082,2]
[400143608,1767150645715,-151.0,0.000181,2]
[400143609,1767150645724,-1000.0,0.00018108,2]
[400143610,1767150645733,-244.0,0.00018108,2]
[400143611,1767150645743,-2027.31906475,0.00018108,2]
[400143612,1767150645752,-574.12855637,0.00018361,2]
[400143613,1767150645762,-5000.0,0.0001863,2]
[400143614,1767150645888,-6298.86,0.00018723,2]
[400143615,1767150645899,-371.37255504,0.00018744,2]
[400143616,1767150645908,-920.44525872,0.00018877,2]
[400143617,1767150645918,-487.1307134,0.00018877,2]
[400143618,1767150645927,-302.90913937,0.000189,2]
[400143619,1767150645937,-302.90913937,0.000189,2]
[400143620,1767150645947,-595.37131296,0.00018909,2]
[400143621,1767150645957,-175.548111,0.0001893,2]
[400143622,1767150645966,-175.548111,0.0001893,2]
[400143623,1767150645976,-175.548111,0.0001893,2]
[400143624,1767150645985,-175.548111,0.0001893,2]
[400143625,1767150645995,-302.90913937,0.00019089,2]
[400143626,1767150646005,-302.90913937,0.00019089,2]
[400143627,1767150646014,-1613.0,0.00019159,2]
[400143628,1767150646024,-2099.0,0.00019162,2]
[400143629,1767150646034,-499.794244,0.00019178,2]
[400143630,1767150646043,-499.794244,0.00019178,2]
[400143631,1767150646053,-499.794244,0.00019178,2]
[400143632,1767150646063,-499.794244,0.00019178,2]
[400143633,1767150646072,-533.2,0.00019178,2]
[400143634,1767150646082,-533.2,0.00019178,2]
[400143636,1767150646092,-533.2,0.00019178,2]
[400143637,1767150646101,-533.2,0.00019178,2]
[400143639,1767150646111,-533.2,0.00019178,2]
[400143640,1767150646120,-533.2,0.00019178,2]
[400143641,1767150646130,-533.2,0.00019178,2]
[400143642,1767150646139,-533.2,0.00019178,2]
[400143643,1767150646149,-533.2,0.00019178,2]
[400143644,1767150646159,-533.2,0.00019178,2]
[400143645,1767150646168,-533.2,0.00019178,2]
[400143646,1767150646177,-533.2,0.00019178,2]
[400143647,1767150646187,-533.2,0.00019178,2]
[400143648,1767150646196,-533.2,0.00019178,2]
[400143649,1767150646206,-533.2,0.00019178,2]
[400143650,1767150646215,-533.2,0.00019178,2]
[400143651,1767150646225,-533.2,0.00019178,2]
[400143652,1767150646235,-533.2,0.00019178,2]
[400143653,1767150646244,-533.2,0.00019178,2]
[400143654,1767150646254,-533.2,0.00019178,2]
[400143655,1767150646263,-533.2,0.00019178,2]
[400143656,1767150646272,-533.2,0.00019178,2]
[400143657,1767150646283,-533.2,0.00019178,2]
[400143658,1767150646292,-533.42551435,0.00019178,2]
[400143659,1767150646302,-500.0,0.00019178,2]
[400143660,1767150646311,-500.0,0.00019178,2]
[400143661,1767150646321,-500.0,0.00019178,2]
[400143662,1767150646331,-500.0,0.00019178,2]
[400143663,1767150646340,-500.0,0.00019178,2]
[400143664,1767150646349,-500.0,0.00019178,2]
[400143665,1767150646359,-500.0,0.00019178,2]
[400143666,1767150646368,-500.0,0.00019178,2]
[400143667,1767150646378,-500.0,0.00019178,2]
[400143668,1767150646387,-500.0,0.00019178,2]
[400143669,1767150646397,-500.0,0.00019178,2]
[400143670,1767150646407,-500.0,0.00019178,2]
[400143671,1767150646416,-500.0,0.00019178,2]
[400143672,1767150646427,-500.0,0.00019178,2]
[400143674,1767150646438,-500.0,0.00019178,2]
[400143676,1767150646447,-500.0,0.00019178,2]
[400143677,1767150646456,-500.0,0.00019178,2]
[400143678,1767150646466,-500.0,0.00019178,2]
[400143679,1767150646477,-500.0,0.00019178,2]
[400143681,1767150646488,-500.0,0.00019178,2]
[400143682,1767150646498,-500.0,0.00019178,2]
[400143684,1767150646507,-500.0,0.00019178,2]
[400143685,1767150646517,-500.0,0.00019178,2]
[400143686,1767150646527,-500.0,0.00019178,2]
[400143687,1767150646537,-500.0,0.00019178,2]
[400143688,1767150646547,-500.0,0.00019178,2]
[400143689,1767150646556,-500.0,0.00019178,2]
[400143690,1767150646566,-500.0,0.00019178,2]
[400143691,1767150646575,-500.0,0.00019178,2]
[400143692,1767150646585,-500.0,0.00019178,2]
[400143693,1767150646595,-500.0,0.00019178,2]
[400143694,1767150646604,-500.0,0.00019178,2]
[400143695,1767150646614,-500.0,0.00019178,2]
[400143696,1767150646624,-500.0,0.00019178,2]
[400143697,1767150646634,-500.0,0.00019178,2]
[400143698,1767150646646,-500.0,0.00019178,2]
[400143699,1767150646656,-500.0,0.00019178,2]
[400143700,1767150646665,-500.0,0.00019178,2]
[400143701,1767150646675,-500.0,0.00019178,2]
[400143702,1767150646686,-500.0,0.00019178,2]
[400143703,1767150646695,-500.0,0.00019178,2]
[400143704,1767150646705,-500.0,0.00019178,2]
[400143705,1767150646716,-500.0,0.00019178,2]
[400143706,1767150646725,-500.0,0.00019178,2]
[400143707,1767150646735,-500.0,0.00019178,2]
[400143708,1767150646744,-500.0,0.00019178,2]
[400143709,1767150646758,-500.0,0.00019178,2]
[400143710,1767150646768,-500.0,0.00019178,2]
[400143711,1767150646777,-500.0,0.00019178,2]
[400143712,1767150646787,-500.0,0.00019178,2]
[400143713,1767150646796,-500.0,0.00019178,2]
[400143714,1767150646805,-500.0,0.00019178,2]
[400143715,1767150646815,-500.0,0.00019178,2]
[400143716,1767150646825,-500.0,0.00019178,2]
[400143717,1767150646835,-500.0,0.00019178,2]
[400143718,1767150646845,-500.0,0.00019178,2]
[400143719,1767150646855,-266.56663843,0.00019178,2]
[400143720,1767150646865,-500.0,0.00019178,2]
[400143721,1767150646877,-500.0,0.00019178,2]
[400143722,1767150646887,-500.0,0.00019178,2]
[400143723,1767150646896,-500.0,0.00019178,2]
[400143724,1767150646906,-500.0,0.00019178,2]
[400143725,1767150646915,-500.0,0.00019178,2]
[400143726,1767150646925,-500.0,0.00019178,2]
[400143727,1767150646933,-500.0,0.00019178,2]
[400143728,1767150646943,-500.0,0.00019178,2]
[400143729,1767150646953,-500.0,0.00019178,2]
[400143730,1767150646963,-500.0,0.00019178,2]
[400143731,1767150646972,-500.0,0.00019178,2]
[400143732,1767150646982,-500.0,0.00019178,2]
[400143733,1767150646991,-500.0,0.00019178,2]
[400143734,1767150647001,-500.0,0.00019178,2]
[400143735,1767150647011,-500.0,0.00019178,2]
[400143736,1767150647021,-500.0,0.00019178,2]
[400143737,1767150647030,-151.0,0.00019178,2]
[400143738,1767150647040,-151.0,0.00019178,2]
[400143739,1767150647049,-151.0,0.00019178,2]
[400143740,1767150647059,-390.475302,0.00019178,2]
[400143741,1767150647069,-390.475302,0.00019178,2]
[400143742,1767150647079,-390.475302,0.00019178,2]
[400143743,1767150647089,-390.475302,0.00019178,2]
[400143744,1767150647099,-390.475302,0.00019178,2]
[400143745,1767150647109,-390.475302,0.00019178,2]
[400143746,1767150647119,-390.475302,0.00019178,2]
[400143747,1767150647129,-390.475302,0.00019178,2]
[400143748,1767150647138,-150.0,0.00019178,2]
[400143749,1767150647148,-5500.0,0.00019178,2]
[400143750,1767150647158,-166.47,0.000192,2]
[400143751,1767150647167,-1043.2,0.000192,2]
[400143752,1767150647177,-165.41,0.000192,2]
[400143753,1767150647186,-160.68,0.000192,2]
[400143754,1767150647196,-12754.02,0.000192,2]
[400143755,1767150647206,-3779.10372446,0.00019218,6]
[400143756,1767150647221,-337.90317746,0.00019242,9]
[400143757,1767150647235,-302.90913937,0.00019278,2]
[400143758,1767150647249,-302.90913937,0.00019278,2]
[400143759,1767150647259,-151.0,0.000193,2]
[400143760,1767150647268,-300.0,0.00019315,2]
[400143761,1767150647278,-380.081,0.00019452,2]
[400143762,1767150647288,-450.0,0.00019452,2]
[400143763,1767150647298,-302.90913937,0.00019467,2]
[400143764,1767150647308,-302.90913937,0.00019467,2]
[400143765,1767150647318,-186.0,0.00019588,2]
[400143766,1767150647329,-600.0,0.00019589,2]
[400143767,1767150647343,-5613.79100377,0.00019623,6]
[400143768,1767150647353,-302.90913937,0.00019656,2]
[400143769,1767150647363,-302.90913937,0.00019656,2]
[400143770,1767150647372,-2466.51510913,0.00019678,2]
[400143771,1767150647382,-556.55106819,0.00019726,2]
[400143772,1767150647391,-3217.98838976,0.00019726,2]
[400143773,1767150647401,-500.0,0.00019731,2]
[400143774,1767150647411,-454.36370906,0.00019845,4]
[400143775,1767150647421,-454.36370906,0.00019845,4]
[400143776,1767150647430,-7348.67,0.00019894,2]
[400143777,1767150647439,-1262.39169597,0.00019898,2]
[400143778,1767150647448,-1000.0,0.00019919,2]
[400143779,1767150647458,-492.0,0.00019919,2]
[400143780,1767150647467,-1003.0,0.0002,2]
[400143781,1767150647476,-1105.62734024,0.0002,2]
[400143782,1767150647486,-179.55824252,0.0002,2]
[400143783,1767150647495,-210.10713874,0.0002,2]
[400143784,1767150647505,-421.88579972,0.00020019,2]
[400143785,1767150647514,-454.36370906,0.00020034,4]
[400143786,1767150647524,-454.36370906,0.00020034,4]
[400143787,1767150647534,-1182.62181526,0.00020127,2]
[400143788,1767150647543,-454.36370906,0.00020223,4]
[400143789,1767150647553,-454.36370906,0.00020223,4]
[400143790,1767150647562,-337.90317746,0.00020377,10]
[400143791,1767150647571,-454.36370906,0.00020412,4]
[400143792,1767150647581,-454.36370906,0.00020412,4]
[400143793,1767150647590,-1043.2,0.000205,2]
[400143794,1767150647599,-12754.02,0.000205,2]
[400143795,1767150647609,-151.0,0.000205,4]
[400143796,1767150647619,-151.0,0.000205,2]
[400143797,1767150647628,-158.312179,0.000205,2]
[400143798,1767150647642,-453.9852619,0.00020601,4]
[400143799,1767150647652,-453.98526188,0.00020601,4]
[400143800,1767150647662,-500.0,0.00020769,2]
[400143801,1767150647674,-422.9706864,0.00020917,2]
[400143802,1767150647683,-154.89504157,0.00020917,2]
[400143803,1767150647693,-203.05,0.00021,2]
[400143804,1767150647703,-2258.0,0.00021032,2]
[400143805,1767150647715,-8398.48,0.00021064,2]
[400143806,1767150647725,-186.0,0.00021171,2]
[400143807,1767150647735,-337.90317746,0.00021511,11]
[400143808,1767150647744,-1041.66666667,0.00021622,2]
[400143809,1767150647754,-151.0,0.000217,4]
[400143810,1767150647764,-20261.75,0.000217,3]
[400143811,1767150647774,-151.0,0.000217,2]
[400143812,1767150647784,-151.0,0.000217,2]
[400143813,1767150647794,-151.0,0.000217,2]
[400143814,1767150647804,-20261.75,0.000218,3]
[400143815,1767150647813,-500.0,0.00021862,2]
[400143816,1767150647823,-633.0,0.000219,2]
[400143817,1767150647833,-1000.0,0.00021911,10]
[400143818,1767150647842,-791.0,0.00021911,10]
[400143819,1767150647853,-845.57419863,0.00021917,2]
[400143820,1767150647862,-1503.24301979,0.00021917,2]
[400143821,1767150647872,-793.64,0.00021917,2]
[400143822,1767150647882,-2348.81721842,0.00021917,2]
[400143823,1767150647891,-3382.29679452,0.00021917,2]
[400143824,1767150647901,-4603.6817481,0.00021917,2]
[400143825,1767150647911,-6012.97207915,0.00021917,2]
[400143826,1767150647920,-224.92658771,0.00021917,2]
[400143827,1767150647930,-500.0,0.00021917,2]
[400143828,1767150647939,-503.00820269,0.00021917,2]
[400143829,1767150647948,-506.55449777,0.00021917,2]
[400143830,1767150647959,-500.0,0.00021917,2]
[400143831,1767150647969,-277.46495324,0.00021917,2]
[400143832,1767150647978,-500.0,0.00021917,2]
[400143833,1767150647988,-181.58814641,0.00021917,2]
[400143834,1767150647997,-358.26083723,0.00021917,2]
[400143835,1767150648007,-644.86950701,0.00021917,2]
[400143836,1767150648017,-1146.43467913,0.00021917,2]
[400143837,1767150648030,-1791.30418613,0.00021917,2]
[400143838,1767150648041,-419.55533198,0.00021917,2]
[400143839,1767150648050,-2579.47802803,0.00021917,2]
[400143840,1767150648060,-3510.95620482,0.00021917,2]
[400143841,1767150648069,-4585.7387165,0.00021917,2]
[400143842,1767150648079,-5803.82556307,0.00021917,2]
[400143843,1767150648088,-7165.21674454,0.00021917,2]
[400143844,1767150648097,-572.01801726,0.00021917,2]
[400143845,1767150648107,-469.76344368,0.00021917,2]
[400143846,1767150648116,-500.0,0.00021917,2]
[400143847,1767150648125,-500.0,0.00021917,2]
[400143848,1767150648134,-3532.14,0.00021917,2]
[400143849,1767150648143,-388.31492034,0.00021917,2]
[400143850,1767150648153,-181.299206,0.00021918,2]
[400143851,1767150648163,-150.0,0.00021918,2]
[400143852,1767150648172,-1262.39169597,0.00021998,2]
[400143853,1767150648182,-160.73,0.00022,7]
[400143854,1767150648191,-466.03663923,0.00022019,2]
[400143855,1767150648201,-5908.39709816,0.00022098,2]
[400143856,1767150648227,-2466.51510913,0.00019741,2]
[400143857,1767150648236,-19779.9283114,0.00022098,2]
[400143858,1767150648248,-1923.85359696,0.00022098,2]
[400143859,1767150648260,-2668.98,0.00022098,2]
[400143860,1767150648272,-967.72451616,0.00022098,2]
[400143861,1767150648474,-617.40005154,0.00019457,2]
[400143862,1767150648483,-640.24385345,0.00020005,2]
[400143863,1767150648498,-2466.51510913,0.00020089,2]
[400143864,1767150648507,-2466.51510913,0.00020482,2]
[400143865,1767150648517,-663.93287602,0.00020553,2]
[400143866,1767150648526,-2466.51510913,0.00020798,2]
[400143867,1767150648536,-2466.51510913,0.0002089,2]
[400143868,1767150648545,-647.00627949,0.00021254,2]
[400143869,1767150648980,-3e-08,0.00021254,2]
[400143870,1767150648996,-445.525,0.00021254,2]
[400143871,1767150649173,-234.74843056,0.00015428,2]
[400143872,1767150649184,-4542.0343703,0.0002,2]
[400143873,1767150649249,-13638.07570917,0.0002,2]
[400143874,1767150650261,10000.01,0.000119,2]
[400143875,1767150656657,-10000.01,0.000119,2]
[400143876,1767150720734,-300.0,0.00011899,2]
[400143877,1767150722387,300.0,0.00011899,2]
[400143878,1767150722846,289.0,0.00011899,2]
[400143879,1767150724535,151.48,0.0001,2]
[400143880,1767150726911,151.48,0.000102,2]
[400143881,1767150729935,151.48,0.000104,2]
[400143882,1767150735841,-8956.57,0.000119,2]
[400143883,1767150735920,-10000.01,0.000119,2]
[400143884,1767150736059,-10000.01,0.000119,2]
[400143885,1767150736194,-10000.01,0.000119,2]
[400143886,1767150736300,-10000.01,0.000119,2]
[400143887,1767150736416,-10000.01,0.000119,2]
[400143888,1767150738859,-10000.01,0.000119,2]
[400143901,1767150840385,-300.0,0.00011898,2]
[400143902,1767150840407,-1200.0,0.00011898,2]
[400143903,1767150840428,-1262.39169598,0.00011898,2]
[400143904,1767150840448,-620.06715884,0.00011899,2]
[400143905,1767150840471,-500.0,0.00011899,2]
[400143906,1767150840698,-500.0,0.00011899,2]
[400143907,1767150840732,-500.0,0.00011899,2]
[400143908,1767150840755,-117.54114518,0.00011899,2]
[400143909,1767150845351,-382.45885482,0.00011899,2]
[400143910,1767150845372,-500.0,0.00011899,2]
[400143911,1767150845393,-582.34016437,0.00011899,2]
[400143912,1767150845414,-500.0,0.00011899,2]
[400143913,1767150845435,-500.0,0.00011899,2]